{"text_format":"3","workbook":"xlsx","n_sheets":1,"sheets":["Budget mensuel personnel"],"read":"whole","date_system":"1900"}

{"sheet":"Budget mensuel personnel","index":0,"n_rows":62,"n_cols":10,"rows_kept":62,"merged":[[0,1,0,9],[2,1,4,1],[2,2,2,3],[2,7,2,8],[3,2,3,3],[3,7,3,8],[4,2,4,3],[4,6,4,8],[5,1,7,1],[5,2,5,3],[5,7,5,8],[6,2,6,3],[6,7,6,8],[7,2,7,3],[7,6,7,8],[20,6,20,9],[21,1,21,4],[29,6,29,9],[31,1,31,4],[36,6,36,9],[38,1,38,4],[42,6,42,9],[44,1,44,4],[48,6,48,9],[52,1,52,4],[55,6,55,9]]}
[null,"Budget mensuel personnel"]
[]
[null,"REVENUS MENSUELS PRÉVUS","Revenu 1",null,{"v":2500,"d":"2,500 €"},null,"DÉPENSES PRÉVUES TOTALES ","(Revenu moins dépenses prévus)",null,{"$f":"SUM(C21,C31,C38,C44,C52,C62,H20,H29,H36,H42,H48,H55)","v":{"v":2060,"d":"2,060 €"}}]
[null,null,"Revenu supplémentaire",null,{"v":500,"d":"500 €"},null,"DÉPENSES RÉELLES TOTALES ","(Revenu moins dépenses réels)",null,{"$f":"SUM(D21,D31,D38,D44,D52,D62,I20,I29,I36,I42,I48,I55)","v":{"v":2040,"d":"2,040 €"}}]
[null,null,"Revenu mensuel total",null,{"$f":"SUM(E3:E4)","v":{"v":3000,"d":"3,000 €"}},null,"Écart des dépenses totales",null,null,{"$f":"SUM(E21,E31,E38,E44,E52,E62,J20,J29,J36,J42,J48,J55)","v":{"v":20,"d":"20 €"}}]
[null,"REVENUS MENSUELS RÉELS","Revenu 1",null,{"v":2500,"d":"2,500 €"},null,"SOLDE PRÉVU","(Revenu moins dépenses prévus)",null,{"$f":"E5-J3","v":{"v":940,"d":"940 €"}}]
[null,null,"Revenu supplémentaire",null,{"v":500,"d":"500 €"},null,"SOLDE RÉEL","(Revenu moins dépenses réels)",null,{"$f":"E8-J4","v":{"v":960,"d":"960 €"}}]
[null,null,"Revenu mensuel total",null,{"$f":"SUM(E6:E7)","v":{"v":3000,"d":"3,000 €"}},null,"ÉCART DE SOLDE (réel moins prévu)",null,null,{"$f":"J7-J6","v":{"v":20,"d":"20 €"}}]
[]
[null,"LOGEMENT","Coût prévu","Coût réel","Écart",null,"LOISIRS","Coût prévu","Coût réel","Écart"]
[null,"Emprunt ou loyer",{"v":1500,"d":"1,500 €"},{"v":1400,"d":"1,400 €"},{"$f":"Logement[[#This Row],[Coût prévu]]-Logement[[#This Row],[Coût réel]]","v":{"v":100,"d":"100 €"}},null,"Vidéo/DVD",{"v":0,"d":"0 €"},{"v":50,"d":"50 €"},{"$f":"Loisirs[[#This Row],[Coût prévu]]-Loisirs[[#This Row],[Coût réel]]","v":{"v":-50,"d":"-50 €"}}]
[null,"Téléphone",{"v":60,"d":"60 €"},{"v":100,"d":"100 €"},{"$f":"Logement[[#This Row],[Coût prévu]]-Logement[[#This Row],[Coût réel]]","v":{"v":-40,"d":"-40 €"}},null,"CD",null,null,{"$f":"Loisirs[[#This Row],[Coût prévu]]-Loisirs[[#This Row],[Coût réel]]","v":{"v":0,"d":"0 €"}}]
[null,"Électricité",{"v":50,"d":"50 €"},{"v":60,"d":"60 €"},{"$f":"Logement[[#This Row],[Coût prévu]]-Logement[[#This Row],[Coût réel]]","v":{"v":-10,"d":"-10 €"}},null,"Cinéma",null,null,{"$f":"Loisirs[[#This Row],[Coût prévu]]-Loisirs[[#This Row],[Coût réel]]","v":{"v":0,"d":"0 €"}}]
[null,"Gaz",{"v":200,"d":"200 €"},{"v":180,"d":"180 €"},{"$f":"Logement[[#This Row],[Coût prévu]]-Logement[[#This Row],[Coût réel]]","v":{"v":20,"d":"20 €"}},null,"Concerts",null,null,{"$f":"Loisirs[[#This Row],[Coût prévu]]-Loisirs[[#This Row],[Coût réel]]","v":{"v":0,"d":"0 €"}}]
[null,"Eau",null,null,{"$f":"Logement[[#This Row],[Coût prévu]]-Logement[[#This Row],[Coût réel]]","v":{"v":0,"d":"0 €"}},null,"Événements sportifs",null,null,{"$f":"Loisirs[[#This Row],[Coût prévu]]-Loisirs[[#This Row],[Coût réel]]","v":{"v":0,"d":"0 €"}}]
[null,"Abonnement câble",null,null,{"$f":"Logement[[#This Row],[Coût prévu]]-Logement[[#This Row],[Coût réel]]","v":{"v":0,"d":"0 €"}},null,"Théâtre",null,null,{"$f":"Loisirs[[#This Row],[Coût prévu]]-Loisirs[[#This Row],[Coût réel]]","v":{"v":0,"d":"0 €"}}]
[null,"Enlèvement des ordures ménagères",null,null,{"$f":"Logement[[#This Row],[Coût prévu]]-Logement[[#This Row],[Coût réel]]","v":{"v":0,"d":"0 €"}},null,"Autres",null,null,{"$f":"Loisirs[[#This Row],[Coût prévu]]-Loisirs[[#This Row],[Coût réel]]","v":{"v":0,"d":"0 €"}}]
[null,"Entretien ou réparations",null,null,{"$f":"Logement[[#This Row],[Coût prévu]]-Logement[[#This Row],[Coût réel]]","v":{"v":0,"d":"0 €"}},null,"Autres",null,null,{"$f":"Loisirs[[#This Row],[Coût prévu]]-Loisirs[[#This Row],[Coût réel]]","v":{"v":0,"d":"0 €"}}]
[null,"Fournitures",null,null,{"$f":"Logement[[#This Row],[Coût prévu]]-Logement[[#This Row],[Coût réel]]","v":{"v":0,"d":"0 €"}},null,"Autres",null,null,{"$f":"Loisirs[[#This Row],[Coût prévu]]-Loisirs[[#This Row],[Coût réel]]","v":{"v":0,"d":"0 €"}}]
[null,"Autres",null,null,{"$f":"Logement[[#This Row],[Coût prévu]]-Logement[[#This Row],[Coût réel]]","v":{"v":0,"d":"0 €"}},null,"Summa",{"$f":"SUBTOTAL(109,Loisirs[Coût prévu])","v":{"v":0,"d":"0 €"}},{"$f":"SUBTOTAL(109,Loisirs[Coût réel])","v":{"v":50,"d":"50 €"}},{"$f":"SUBTOTAL(109,Loisirs[Écart])","v":{"v":-50,"d":"-50 €"}}]
[null,"Summa",{"$f":"SUBTOTAL(109,Logement[Coût prévu])","v":{"v":1810,"d":"1,810 €"}},{"$f":"SUBTOTAL(109,Logement[Coût réel])","v":{"v":1740,"d":"1,740 €"}},{"$f":"SUBTOTAL(109,Logement[Écart])","v":{"v":70,"d":"70 €"}}]
[{"$nulls":6},"CRÉDITS","Coût prévu","Coût réel","Écart"]
[null,"TRANSPORTS","Coût prévu","Coût réel","Écart",null,"Personnels",null,null,{"$f":"Crédits[[#This Row],[Coût prévu]]-Crédits[[#This Row],[Coût réel]]","v":{"v":0,"d":"0 €"}}]
[null,"Paiement véhicule",{"v":250,"d":"250 €"},{"v":250,"d":"250 €"},{"$f":"Transports[[#This Row],[Coût prévu]]-Transports[[#This Row],[Coût réel]]","v":{"v":0,"d":"0 €"}},null,"Étudiants",null,null,{"$f":"Crédits[[#This Row],[Coût prévu]]-Crédits[[#This Row],[Coût réel]]","v":{"v":0,"d":"0 €"}}]
[null,"Bus/taxi",null,null,{"$f":"Transports[[#This Row],[Coût prévu]]-Transports[[#This Row],[Coût réel]]","v":{"v":0,"d":"0 €"}},null,"Carte de crédit",null,null,{"$f":"Crédits[[#This Row],[Coût prévu]]-Crédits[[#This Row],[Coût réel]]","v":{"v":0,"d":"0 €"}}]
[null,"Assurance",null,null,{"$f":"Transports[[#This Row],[Coût prévu]]-Transports[[#This Row],[Coût réel]]","v":{"v":0,"d":"0 €"}},null,"Carte de crédit",null,null,{"$f":"Crédits[[#This Row],[Coût prévu]]-Crédits[[#This Row],[Coût réel]]","v":{"v":0,"d":"0 €"}}]
[null,"Autorisation",null,null,{"$f":"Transports[[#This Row],[Coût prévu]]-Transports[[#This Row],[Coût réel]]","v":{"v":0,"d":"0 €"}},null,"Carte de crédit",null,null,{"$f":"Crédits[[#This Row],[Coût prévu]]-Crédits[[#This Row],[Coût réel]]","v":{"v":0,"d":"0 €"}}]
[null,"Carburant",null,null,{"$f":"Transports[[#This Row],[Coût prévu]]-Transports[[#This Row],[Coût réel]]","v":{"v":0,"d":"0 €"}},null,"Autres",null,null,{"$f":"Crédits[[#This Row],[Coût prévu]]-Crédits[[#This Row],[Coût réel]]","v":{"v":0,"d":"0 €"}}]
[null,"Entretien",null,null,{"$f":"Transports[[#This Row],[Coût prévu]]-Transports[[#This Row],[Coût réel]]","v":{"v":0,"d":"0 €"}},null,"Summa",{"$f":"SUBTOTAL(109,Crédits[Coût prévu])","v":{"v":0,"d":"0 €"}},{"$f":"SUBTOTAL(109,Crédits[Coût réel])","v":{"v":0,"d":"0 €"}},{"$f":"SUBTOTAL(109,Crédits[Écart])","v":{"v":0,"d":"0 €"}}]
[null,"Autres",null,null,{"$f":"Transports[[#This Row],[Coût prévu]]-Transports[[#This Row],[Coût réel]]","v":{"v":0,"d":"0 €"}}]
[null,"Summa",{"$f":"SUBTOTAL(109,Transports[Coût prévu])","v":{"v":250,"d":"250 €"}},{"$f":"SUBTOTAL(109,Transports[Coût réel])","v":{"v":250,"d":"250 €"}},{"$f":"SUBTOTAL(109,Transports[Écart])","v":{"v":0,"d":"0 €"}},null,"TAXES","Coût prévu","Coût réel","Écart"]
[{"$nulls":6},"Fédéraux",null,null,{"$f":"Taxes[[#This Row],[Coût prévu]]-Taxes[[#This Row],[Coût réel]]","v":{"v":0,"d":"0 €"}}]
[null,"ASSURANCES","Coût prévu","Coût réel","Écart",null,"Régionaux",null,null,{"$f":"Taxes[[#This Row],[Coût prévu]]-Taxes[[#This Row],[Coût réel]]","v":{"v":0,"d":"0 €"}}]
[null,"Maison",null,null,{"$f":"Assurances[[#This Row],[Coût prévu]]-Assurances[[#This Row],[Coût réel]]","v":{"v":0,"d":"0 €"}},null,"Locaux",null,null,{"$f":"Taxes[[#This Row],[Coût prévu]]-Taxes[[#This Row],[Coût réel]]","v":{"v":0,"d":"0 €"}}]
[null,"Santé",null,null,{"$f":"Assurances[[#This Row],[Coût prévu]]-Assurances[[#This Row],[Coût réel]]","v":{"v":0,"d":"0 €"}},null,"Autres",null,null,{"$f":"Taxes[[#This Row],[Coût prévu]]-Taxes[[#This Row],[Coût réel]]","v":{"v":0,"d":"0 €"}}]
[null,"Vie",null,null,{"$f":"Assurances[[#This Row],[Coût prévu]]-Assurances[[#This Row],[Coût réel]]","v":{"v":0,"d":"0 €"}},null,"Summa",{"$f":"SUBTOTAL(109,Taxes[Coût prévu])","v":{"v":0,"d":"0 €"}},{"$f":"SUBTOTAL(109,Taxes[Coût réel])","v":{"v":0,"d":"0 €"}},{"$f":"SUBTOTAL(109,Taxes[Écart])","v":{"v":0,"d":"0 €"}}]
[null,"Autres",null,null,{"$f":"Assurances[[#This Row],[Coût prévu]]-Assurances[[#This Row],[Coût réel]]","v":{"v":0,"d":"0 €"}}]
[null,"Summa",{"$f":"SUBTOTAL(109,Assurances[Coût prévu])","v":{"v":0,"d":"0 €"}},{"$f":"SUBTOTAL(109,Assurances[Coût réel])","v":{"v":0,"d":"0 €"}},{"$f":"SUBTOTAL(109,Assurances[Écart])","v":{"v":0,"d":"0 €"}},null,"ÉCONOMIES OU INVESTISSEMENTS","Coût prévu","Coût réel","Écart"]
[{"$nulls":6},"Compte d’épargne retraite",null,null,{"$f":"ÉconomiesOuInvestissements[[#This Row],[Coût prévu]]-ÉconomiesOuInvestissements[[#This Row],[Coût réel]]","v":{"v":0,"d":"0 €"}}]
[null,"ALIMENTATION","Coût prévu","Coût réel","Écart",null,"Compte d’investissement",null,null,{"$f":"ÉconomiesOuInvestissements[[#This Row],[Coût prévu]]-ÉconomiesOuInvestissements[[#This Row],[Coût réel]]","v":{"v":0,"d":"0 €"}}]
[null,"Courses",null,null,{"$f":"Alimentation[[#This Row],[Coût prévu]]-Alimentation[[#This Row],[Coût réel]]","v":{"v":0,"d":"0 €"}},null,"Autres",null,null,{"$f":"ÉconomiesOuInvestissements[[#This Row],[Coût prévu]]-ÉconomiesOuInvestissements[[#This Row],[Coût réel]]","v":{"v":0,"d":"0 €"}}]
[null,"Restaurant",null,null,{"$f":"Alimentation[[#This Row],[Coût prévu]]-Alimentation[[#This Row],[Coût réel]]","v":{"v":0,"d":"0 €"}},null,"Summa",{"$f":"SUBTOTAL(109,ÉconomiesOuInvestissements[Coût prévu])","v":{"v":0,"d":"0 €"}},{"$f":"SUBTOTAL(109,ÉconomiesOuInvestissements[Coût réel])","v":{"v":0,"d":"0 €"}},{"$f":"SUBTOTAL(109,ÉconomiesOuInvestissements[Écart])","v":{"v":0,"d":"0 €"}}]
[null,"Autres",null,null,{"$f":"Alimentation[[#This Row],[Coût prévu]]-Alimentation[[#This Row],[Coût réel]]","v":{"v":0,"d":"0 €"}}]
[null,"Summa",{"$f":"SUBTOTAL(109,Alimentation[Coût prévu])","v":{"v":0,"d":"0 €"}},{"$f":"SUBTOTAL(109,Alimentation[Coût réel])","v":{"v":0,"d":"0 €"}},{"$f":"SUBTOTAL(109,Alimentation[Écart])","v":{"v":0,"d":"0 €"}},null,"CADEAUX ET DONS","Coût prévu","Coût réel","Écart"]
[{"$nulls":6},"Association caritative 1",null,null,{"$f":"CadeauxEtDons[[#This Row],[Coût prévu]]-CadeauxEtDons[[#This Row],[Coût réel]]","v":{"v":0,"d":"0 €"}}]
[null,"ANIMAUX","Coût prévu","Coût réel","Écart",null,"Association caritative 2",null,null,{"$f":"CadeauxEtDons[[#This Row],[Coût prévu]]-CadeauxEtDons[[#This Row],[Coût réel]]","v":{"v":0,"d":"0 €"}}]
[null,"Alimentation",null,null,{"$f":"Animaux[[#This Row],[Coût prévu]]-Animaux[[#This Row],[Coût réel]]","v":{"v":0,"d":"0 €"}},null,"Association caritative 3",null,null,{"$f":"CadeauxEtDons[[#This Row],[Coût prévu]]-CadeauxEtDons[[#This Row],[Coût réel]]","v":{"v":0,"d":"0 €"}}]
[null,"Frais médicaux",null,null,{"$f":"Animaux[[#This Row],[Coût prévu]]-Animaux[[#This Row],[Coût réel]]","v":{"v":0,"d":"0 €"}},null,"Summa",{"$f":"SUBTOTAL(109,CadeauxEtDons[Coût prévu])","v":{"v":0,"d":"0 €"}},{"$f":"SUBTOTAL(109,CadeauxEtDons[Coût réel])","v":{"v":0,"d":"0 €"}},{"$f":"SUBTOTAL(109,CadeauxEtDons[Écart])","v":{"v":0,"d":"0 €"}}]
[null,"Toilettage",null,null,{"$f":"Animaux[[#This Row],[Coût prévu]]-Animaux[[#This Row],[Coût réel]]","v":{"v":0,"d":"0 €"}}]
[null,"Jouets",null,null,{"$f":"Animaux[[#This Row],[Coût prévu]]-Animaux[[#This Row],[Coût réel]]","v":{"v":0,"d":"0 €"}},null,"JURIQUE","Coût prévu","Coût réel","Écart"]
[null,"Autres",null,null,{"$f":"Animaux[[#This Row],[Coût prévu]]-Animaux[[#This Row],[Coût réel]]","v":{"v":0,"d":"0 €"}},null,"Avocat",null,null,{"$f":"Juridique[[#This Row],[Coût prévu]]-Juridique[[#This Row],[Coût réel]]","v":{"v":0,"d":"0 €"}}]
[null,"Summa",{"$f":"SUBTOTAL(109,Animaux[Coût prévu])","v":{"v":0,"d":"0 €"}},{"$f":"SUBTOTAL(109,Animaux[Coût réel])","v":{"v":0,"d":"0 €"}},{"$f":"SUBTOTAL(109,Animaux[Écart])","v":{"v":0,"d":"0 €"}},null,"Pension alimentaire",null,null,{"$f":"Juridique[[#This Row],[Coût prévu]]-Juridique[[#This Row],[Coût réel]]","v":{"v":0,"d":"0 €"}}]
[{"$nulls":6},"Paiements suite à un recours ou à un jugement",null,null,{"$f":"Juridique[[#This Row],[Coût prévu]]-Juridique[[#This Row],[Coût réel]]","v":{"v":0,"d":"0 €"}}]
[null,"SOINS PERSONNELS","Coût prévu","Coût réel","Écart",null,"Autres",null,null,{"$f":"Juridique[[#This Row],[Coût prévu]]-Juridique[[#This Row],[Coût réel]]","v":{"v":0,"d":"0 €"}}]
[null,"Frais médicaux",null,null,{"$f":"SoinsPersonnels[[#This Row],[Coût prévu]]-SoinsPersonnels[[#This Row],[Coût réel]]","v":{"v":0,"d":"0 €"}},null,"Summa",{"$f":"SUBTOTAL(109,Juridique[Coût prévu])","v":{"v":0,"d":"0 €"}},{"$f":"SUBTOTAL(109,Juridique[Coût réel])","v":{"v":0,"d":"0 €"}},{"$f":"SUBTOTAL(109,Juridique[Écart])","v":{"v":0,"d":"0 €"}}]
[null,"Coiffeur/manucure",null,null,{"$f":"SoinsPersonnels[[#This Row],[Coût prévu]]-SoinsPersonnels[[#This Row],[Coût réel]]","v":{"v":0,"d":"0 €"}}]
[null,"Habillement",null,null,{"$f":"SoinsPersonnels[[#This Row],[Coût prévu]]-SoinsPersonnels[[#This Row],[Coût réel]]","v":{"v":0,"d":"0 €"}}]
[null,"Nettoyage à sec",null,null,{"$f":"SoinsPersonnels[[#This Row],[Coût prévu]]-SoinsPersonnels[[#This Row],[Coût réel]]","v":{"v":0,"d":"0 €"}}]
[null,"Club de sport",null,null,{"$f":"SoinsPersonnels[[#This Row],[Coût prévu]]-SoinsPersonnels[[#This Row],[Coût réel]]","v":{"v":0,"d":"0 €"}}]
[null,"Cotisations ou frais d’inscription",null,null,{"$f":"SoinsPersonnels[[#This Row],[Coût prévu]]-SoinsPersonnels[[#This Row],[Coût réel]]","v":{"v":0,"d":"0 €"}}]
[null,"Autres",null,null,{"$f":"SoinsPersonnels[[#This Row],[Coût prévu]]-SoinsPersonnels[[#This Row],[Coût réel]]","v":{"v":0,"d":"0 €"}}]
[null,"Summa",{"$f":"SUBTOTAL(109,SoinsPersonnels[Coût prévu])","v":{"v":0,"d":"0 €"}},{"$f":"SUBTOTAL(109,SoinsPersonnels[Coût réel])","v":{"v":0,"d":"0 €"}},{"$f":"SUBTOTAL(109,SoinsPersonnels[Écart])","v":{"v":0,"d":"0 €"}}]